bitfinex/quotes_SOLUSD_20251116
["timestamp","ask_amount","ask_price","bid_price","bid_amount"]
[1763335022465,100.0,137.63,137.62,48.80821415]
[1763335022759,100.0,137.67,137.66,22.6512]
[1763335022971,100.0,137.67,137.66,46.67674949]
[1763335023172,0.1,137.71,137.7,22.6512]
[1763335023335,100.0,137.71,137.7,54.28142436]
[1763335023531,100.0,137.71,137.7,54.97056685]
[1763335023850,22.7512,137.81,137.74,22.6512]
[1763335023851,100.0,137.75,137.74,22.6512]
[1763335024038,100.0,137.75,137.74,40.72647538]
[1763335024241,100.0,137.76,137.75,9.78882769]
[1763335024438,100.0,137.76,137.75,9.46421233]
[1763335024635,100.0,137.76,137.75,38.05000774]
[1763335024947,100.0,137.76,137.75,33.76766773]
[1763335025140,100.0,137.76,137.75,41.67519369]
[1763335025341,100.0,137.76,137.75,33.07766773]
[1763335025546,100.0,137.76,137.75,41.67519369]
[1763335025768,100.0,137.77,137.76,9.78882769]
[1763335025943,100.0,137.77,137.76,28.81282138]
[1763335026260,100.1,137.81,137.8,32.44002769]
[1763335026462,100.1,137.81,137.8,49.47106304]
[1763335026662,100.1,137.81,137.8,33.07766773]
[1763335026880,100.0,137.81,137.8,49.46846432]
[1763335027175,100.0,137.81,137.8,43.55649542]
[1763335027335,100.0,137.82,137.81,9.78882769]
[1763335027665,100.0,137.82,137.81,17.02083941]
[1763335027834,100.0,137.8,137.79,22.6512]
[1763335028033,100.0,137.8,137.79,33.07766773]
[1763335028847,100.0,137.8,137.79,43.55649542]
[1763335029138,0.1,137.88,137.79,43.55649542]
[1763335029444,0.1,137.89,137.79,9.78882769]
[1763335029445,100.0,137.8,137.79,9.78882769]
[1763335029646,100.0,137.82,137.81,9.78882769]
[1763335029848,100.0,137.82,137.81,23.01194988]
[1763335030033,50.0,137.83,137.82,9.78882769]
[1763335030240,100.0,137.83,137.82,9.78882769]
[1763335030454,100.0,137.86,137.85,22.6512]
[1763335030662,0.1,137.89,137.81,11.78719132]
[1763335030663,100.0,137.83,137.81,5.88992732]
[1763335030849,100.0,137.8,137.79,16.36875501]
[1763335031047,100.0,137.8,137.79,16.37617338]
[1763335031274,0.1,137.89,137.86,22.6512]
[1763335031577,100.0,137.91,137.9,22.6512]
[1763335031782,0.1,137.93,137.91,9.78882769]
[1763335031783,100.0,137.92,137.91,9.78882769]
[1763335032069,2.0,138.0,137.94,32.44002769]
[1763335032070,100.1,137.95,137.94,32.44002769]
[1763335032237,2.0,138.0,137.98,22.6512]
[1763335032437,2.0,138.0,137.94,9.78882769]
[1763335032438,100.0,137.95,137.94,9.78882769]
[1763335032654,100.0,137.98,137.97,22.6512]
[1763335032941,100.0,137.98,137.97,32.44002769]
[1763335033263,100.0,137.99,137.98,9.78882769]
[1763335033444,100.0,138.02,138.01,22.6512]
[1763335033635,100.0,138.02,138.01,33.07766773]
[1763335033838,100.0,138.02,138.01,33.76766773]
[1763335034138,100.0,138.02,138.01,33.07766773]
[1763335034337,100.0,138.0,137.99,32.44002769]
[1763335034534,100.0,138.0,137.99,33.07766773]
[1763335034973,100.0,138.0,137.99,10.42646773]
[1763335035346,100.0,137.92,137.91,6.53970598]
[1763335035563,100.0,137.92,137.91,5.84970598]
[1763335035939,100.0,137.95,137.94,22.6512]
[1763335036139,100.0,137.95,137.94,32.44002769]
[1763335036339,100.0,137.95,137.94,43.55649542]
[1763335036570,100.0,137.96,137.95,9.78882769]
[1763335036759,100.0,137.99,137.98,22.6512]
[1763335036974,100.0,137.99,137.98,33.07766773]
[1763335037459,100.0,137.99,137.98,10.42646773]
[1763335038150,100.0,137.92,137.89,5.84040816]
[1763335038375,100.0,137.89,137.88,5.84040816]
[1763335038672,100.0,137.89,137.88,10.42646773]
[1763335038884,100.0,137.89,137.88,9.14811142]
[1763335039484,100.0,137.89,137.88,9.84811142]
[1763335039645,100.0,137.89,137.88,9.14811142]
[1763335039843,100.0,137.89,137.82,7.81362011]
[1763335039844,100.0,137.85,137.83,5.84040816]
[1763335040193,100.0,137.85,137.84,9.14811142]
[1763335040590,100.0,137.85,137.84,32.49931142]
[1763335040765,100.0,137.85,137.84,9.14811142]
[1763335040963,100.0,137.85,137.79,5.84040816]
[1763335040964,100.0,137.81,137.79,5.84040816]
[1763335041205,100.0,137.81,137.75,11.7205693]
[1763335041206,100.0,137.77,137.75,5.84040816]
[1763335041369,100.0,137.77,137.76,5.84040816]
[1763335041791,100.0,137.75,137.73,5.84040816]
[1763335041979,100.0,137.75,137.74,0.7]
[1763335042306,100.0,137.75,137.74,15.01117367]
[1763335042466,100.0,137.75,137.74,9.14811142]
[1763335042867,100.0,137.75,137.74,9.84811142]
[1763335043089,100.0,137.75,137.74,37.66237367]
[1763335043392,100.0,137.75,137.74,19.63693911]
[1763335043966,100.0,137.75,137.74,9.84811142]
[1763335044167,100.0,137.75,137.74,9.14811142]
[1763335044379,100.0,137.73,137.72,5.86306225]
[1763335044579,100.0,137.73,137.64,15.99576217]
[1763335044580,100.0,137.68,137.67,5.86306225]
[1763335044770,100.0,137.68,137.66,5.86306225]
[1763335044971,100.0,137.68,137.66,0.7]
[1763335045187,100.0,137.68,137.67,22.6512]
[1763335045397,100.0,137.68,137.66,6.56306225]
[1763335045585,100.0,137.7,137.69,9.78882769]
[1763335045786,100.0,137.7,137.69,28.08505053]
[1763335045978,100.0,137.72,137.71,9.78882769]
[1763335046169,100.0,137.72,137.71,18.93693911]
[1763335046367,100.0,137.75,137.74,22.6512]
[1763335046565,100.0,137.75,137.74,31.79931142]
[1763335046781,100.0,137.72,137.71,5.87713737]
[1763335046974,100.0,137.72,137.71,5.54683711]
[1763335047576,100.2,137.72,137.71,5.54683711]
[1763335047772,100.0,137.72,137.71,5.54683711]
[1763335048370,5.54683711,137.8,137.71,38.6868648]
[1763335048371,0.2,137.8,137.71,38.6868648]
[1763335048574,100.0,137.72,137.71,22.6512]
[1763335048797,100.0,137.72,137.71,28.19803711]
[1763335048997,100.0,137.72,137.71,26.72004597]
[1763335049301,100.0,137.72,137.71,22.6512]
[1763335049994,100.0,137.72,137.71,26.72004597]
[1763335050189,100.0,137.72,137.71,43.08601103]
[1763335050376,100.0,137.72,137.71,12.60197082]
[1763335050572,100.0,137.72,137.71,5.88718254]
[1763335050776,100.0,137.72,137.71,29.32560844]
[1763335051178,100.0,137.72,137.71,23.07041867]
[1763335051476,100.0,137.72,137.71,17.18323613]
[1763335051677,100.0,137.74,137.73,32.44002769]
[1763335051885,100.0,137.74,137.73,46.96249825]
[1763335052081,100.0,137.75,137.74,9.78882769]
[1763335052293,100.0,137.75,137.74,6.91538627]
[1763335053909,100.0,137.75,137.74,11.6351977]
[1763335054299,109.98882769,137.75,137.74,4.61981143]
[1763335054499,100.0,137.66,137.65,7.84806212]
[1763335054705,100.0,137.66,137.65,6.91538627]
[1763335054885,100.1,137.66,137.65,6.91538627]
[1763335055072,100.0,137.66,137.65,6.91538627]
[1763335055477,100.0,137.64,137.63,5.91514574]
[1763335055703,100.0,137.64,137.63,12.83053201]
[1763335055876,0.1,137.7,137.63,14.76344839]
[1763335056201,100.0,137.64,137.63,31.21926212]
[1763335056387,100.0,137.64,137.62,7.84806212]
[1763335056790,100.0,137.64,137.63,23.3712]
[1763335057278,100.0,137.64,137.63,29.56658627]
[1763335057480,100.0,137.64,137.63,35.4965664]
[1763335057698,100.0,137.64,137.63,5.92998013]
[1763335058001,100.0,137.64,137.63,12.8453664]
[1763335058387,100.0,137.62,137.61,0.2]
[1763335058785,100.0,137.62,137.61,7.11538627]
[1763335058994,100.0,137.62,137.61,0.2]
[1763335058995,109.78882769,137.62,137.61,0.2]
[1763335059196,116.70421396,137.62,137.61,0.2]
[1763335059376,118.70421396,137.62,137.61,0.2]
[1763335059577,141.35541396,137.62,137.61,0.2]
[1763335059777,118.70421396,137.62,137.61,0.2]
[1763335059983,141.35541396,137.62,137.61,0.2]
[1763335060200,118.70421396,137.62,137.61,0.2]
[1763335060600,141.35541396,137.62,137.61,0.2]
[1763335060914,139.35541396,137.62,137.61,0.2]
[1763335061083,141.35541396,137.62,137.61,0.2]
[1763335061433,118.70421396,137.62,137.61,0.2]
[1763335062122,118.70421396,137.62,137.57,0.2]
[1763335062123,118.70421396,137.58,137.57,0.2]
[1763335063788,109.78882769,137.58,137.57,0.2]
[1763335064308,116.70421396,137.58,137.57,0.2]
[1763335064908,118.70421396,137.58,137.57,0.2]
[1763335065695,132.44002769,137.58,137.57,0.2]
[1763335066133,139.35541396,137.58,137.57,0.2]
[1763335066698,132.44002769,137.58,137.57,0.2]
[1763335066915,109.78882769,137.58,137.57,0.2]
[1763335067998,100.0,137.58,137.57,0.2]
[1763335068330,116.70421396,137.58,137.57,0.2]
[1763335069513,109.78882769,137.58,137.57,0.2]
[1763335069716,116.70421396,137.58,137.57,0.2]
[1763335070026,109.78882769,137.58,137.57,0.2]
[1763335070190,116.70421396,137.58,137.57,0.2]
[1763335070392,118.70421396,137.58,137.57,0.2]
[1763335070634,109.78882769,137.58,137.57,0.2]
[1763335071139,100.0,137.58,137.57,0.2]
[1763335072618,109.78882769,137.58,137.57,0.2]
[1763335073221,115.7558556,137.58,137.57,0.2]
[1763335073722,50.0,137.34,137.33,46.65772475]
[1763335073916,50.0,137.37,137.36,22.6512]
[1763335074221,50.0,137.37,137.36,17.72288351]
[1763335074431,100.0,137.38,137.37,9.78882769]
[1763335074723,100.0,137.38,137.37,21.68991142]
[1763335075098,100.0,137.41,137.4,22.6512]
[1763335075322,100.0,137.41,137.4,44.34111142]
[1763335075503,100.0,137.42,137.41,9.78882769]
[1763335075818,100.0,137.42,137.41,33.59099515]
[1763335076026,100.0,137.42,137.41,34.31099515]
[1763335077100,100.0,137.42,137.41,18.44288351]
[1763335077727,100.0,137.45,137.44,32.44002769]
[1763335078034,100.0,137.45,137.44,36.4070556]
[1763335078406,100.0,137.45,137.44,26.61822791]
[1763335078616,100.0,137.45,137.44,36.4070556]
[1763335078922,21.94,137.66,137.44,36.4070556]
[1763335078923,2.0,137.63,137.48,22.6512]
[1763335079223,140.72695705,137.69,137.36,50.15747106]
[1763335079224,100.0,137.46,137.45,10.50882769]
[1763335079410,39.52695705,137.69,137.48,22.6512]
[1763335079411,100.0,137.49,137.48,22.6512]
[1763335079609,100.0,137.49,137.48,32.44002769]
[1763335079829,100.0,137.5,137.49,9.78882769]
[1763335080213,100.0,137.48,137.47,9.78882769]
[1763335080705,22.6512,137.6,137.21,28.5]
[1763335080706,50.0,137.4,137.39,32.44002769]
[1763335080912,50.0,137.4,137.39,37.6902291]
[1763335081126,50.0,137.36,137.35,5.69433511]
[1763335081329,50.0,137.36,137.35,13.19585355]
[1763335081330,100.0,137.36,137.35,13.19585355]
[1763335081546,100.0,137.36,137.35,3.96702791]
[1763335082211,100.0,137.36,137.35,7.93405582]
[1763335082425,100.0,137.39,137.38,22.6512]
[1763335082630,100.0,137.36,137.35,10.44882769]
[1763335082825,100.0,137.39,137.38,22.6512]
[1763335083208,2.0,137.55,137.39,32.44002769]
[1763335083209,100.0,137.4,137.39,32.44002769]
[1763335083711,100.0,137.4,137.39,41.03408351]
[1763335084332,100.0,137.4,137.39,33.10002769]
[1763335084521,100.0,137.4,137.39,40.37408351]
[1763335085939,100.0,137.35,137.34,3.96702791]
[1763335086139,3.96702791,137.45,137.34,7.93405582]
[1763335086140,9.78882769,137.44,137.34,7.93405582]
[1763335086324,100.0,137.28,137.27,16.52811164]
[1763335086636,100.0,137.28,137.27,4.62702791]
[1763335087141,50.0,137.28,137.27,4.62702791]
[1763335087335,2.0,137.52,137.3,9.78882769]
[1763335087530,100.0,137.33,137.32,32.44002769]
[1763335087836,100.0,137.33,137.32,37.74481595]
[1763335088037,100.0,137.34,137.33,9.78882769]
[1763335088210,100.0,137.37,137.36,32.44002769]
[1763335088623,100.0,137.37,137.36,26.61822791]
[1763335088820,100.0,137.35,137.34,3.96702791]
[1763335089030,100.0,137.35,137.34,7.93405582]
[1763335089218,100.0,137.35,137.34,30.58525582]
[1763335089637,100.0,137.35,137.34,7.93405582]
[1763335089955,22.6512,137.46,137.34,17.72288351]
[1763335090112,100.0,137.35,137.34,36.4070556]
[1763335090315,22.6512,137.47,137.34,36.4070556]
[1763335090628,100.0,137.35,137.34,36.4070556]
[1763335091218,100.0,137.35,137.34,40.37408351]
[1763335091485,100.0,137.39,137.38,32.44002769]
[1763335091759,100.0,137.4,137.39,9.78882769]
[1763335091919,100.0,137.43,137.42,32.44002769]
[1763335092417,100.0,137.43,137.42,36.4070556]
[1763335092745,100.0,137.43,137.42,3.96702791]
[1763335092940,100.0,137.43,137.42,36.4070556]
[1763335093524,100.0,137.43,137.42,26.61822791]
[1763335093934,100.0,137.43,137.42,36.4070556]
[1763335094437,100.0,137.43,137.42,26.61822791]
[1763335095232,100.0,137.43,137.42,13.7558556]
[1763335095430,0.69,137.62,137.46,32.44002769]
[1763335095665,100.0,137.49,137.46,32.44002769]
[1763335095949,3.96702791,137.56,137.46,32.44002769]
[1763335095950,100.0,137.47,137.46,32.44002769]
[1763335096489,100.0,137.47,137.46,33.12002769]
[1763335096758,50.0,137.47,137.46,45.05511299]
[1763335096949,100.0,137.47,137.46,52.98916881]
[1763335097149,100.0,137.47,137.46,41.05408351]
[1763335097365,3.96702791,137.62,137.44,9.78882769]
[1763335097366,100.0,137.45,137.44,9.78882769]
[1763335097571,100.0,137.45,137.44,36.4070556]
[1763335097760,100.0,137.46,137.45,9.78882769]
[1763335097934,2.71,137.64,137.45,18.40288351]
[1763335098137,100.0,137.46,137.45,21.72391299]
[1763335098343,22.6512,137.57,137.44,9.78882769]
[1763335098655,100.0,137.45,137.43,11.9350853]
[1763335098858,22.6512,137.54,137.42,21.72391299]
[1763335098859,100.0,137.43,137.42,21.72391299]
[1763335099264,100.0,137.43,137.42,46.66288301]
[1763335099476,100.0,137.43,137.42,44.49187155]
[1763335099762,100.0,137.43,137.42,58.71472687]
[1763335099938,100.0,137.43,137.42,46.66288301]
[1763335100338,100.0,137.43,137.42,58.71472687]
[1763335100534,100.0,137.43,137.42,36.87405532]
[1763335100740,100.0,137.43,137.42,29.76262766]
[1763335100947,100.0,137.44,137.42,36.87405532]
[1763335101183,100.0,137.44,137.43,24.01168301]
[1763335101388,100.0,137.47,137.46,32.44002769]
[1763335101572,100.0,137.47,137.46,51.62822678]
[1763335101879,100.0,137.47,137.46,51.62945705]
[1763335102081,100.0,137.47,137.46,34.7292017]
[1763335102285,100.0,137.47,137.46,41.84062936]
[1763335102457,100.0,137.47,137.46,29.76262766]
[1763335102841,100.0,137.47,137.46,41.84062936]
[1763335104359,100.0,137.47,137.46,12.0780017]
[1763335104564,100.0,137.47,137.46,7.11142766]
[1763335104952,100.0,137.47,137.46,15.19812122]
[1763335105468,100.0,137.47,137.46,7.11142766]
[1763335105659,100.0,137.47,137.46,15.19812122]
[1763335105851,100.0,137.47,137.46,7.11142766]
[1763335106541,100.0,137.47,137.46,15.2022066]
[1763335107177,100.0,137.47,137.46,7.11142766]
[1763335107695,100.0,137.5,137.49,32.44002769]
[1763335107878,100.0,137.5,137.49,46.66288301]
[1763335108060,100.0,137.5,137.49,47.34288301]
[1763335109554,100.0,137.5,137.49,59.4557189]
[1763335110458,100.0,137.5,137.49,22.6512]
[1763335110661,100.0,137.5,137.49,37.84009573]
[1763335111079,100.0,137.5,137.49,15.18889573]
[1763335111858,9.78882769,137.59,137.49,15.18889573]
[1763335111859,100.0,137.53,137.52,22.6512]
[1763335112161,100.0,137.53,137.52,36.87405532]
[1763335112555,100.0,137.51,137.5,21.90166358]
[1763335112788,100.0,137.51,137.5,58.7757189]
[1763335112981,100.0,137.51,137.5,47.38288301]
[1763335113186,100.0,137.51,137.5,36.87405532]
[1763335113390,100.0,137.51,137.5,15.18198497]
[1763335113680,100.0,137.47,137.46,8.07055731]
[1763335113883,100.0,137.45,137.44,12.09893425]
[1763335114081,100.0,137.45,137.43,12.09893425]
[1763335114272,100.0,137.45,137.43,34.75013425]
[1763335114469,100.0,137.45,137.39,10.50882769]
[1763335114470,100.0,137.43,137.42,8.08718653]
[1763335114980,100.0,137.43,137.42,7.11142766]
[1763335115356,100.71,137.43,137.42,7.11142766]
[1763335116681,100.0,137.43,137.42,7.11142766]
[1763335117256,100.0,137.43,137.4,8.08718653]
[1763335117257,100.0,137.4,137.39,30.73838653]
[1763335117457,22.6512,137.47,137.35,8.08718653]
[1763335117458,100.0,137.36,137.35,8.08718653]
[1763335117654,100.0,137.36,137.35,7.11142766]
[1763335117655,100.71,137.36,137.35,7.11142766]
[1763335117878,100.0,137.36,137.35,7.11142766]
[1763335119663,100.0,137.36,137.35,13.18089076]
[1763335119863,100.0,137.36,137.35,7.11142766]
[1763335120275,100.0,137.36,137.35,13.17515228]
[1763335121088,100.0,137.36,137.35,13.17549987]
[1763335121285,100.0,137.36,137.35,7.11142766]
[1763335121499,100.0,137.36,137.35,7.83142766]
[1763335121870,100.0,137.36,137.35,17.62025535]
[1763335122073,100.0,137.36,137.35,40.27145535]
[1763335122481,100.0,137.36,137.35,30.48262766]
[1763335122682,100.0,137.39,137.38,22.6512]
[1763335122890,100.0,137.39,137.38,54.73500248]
[1763335123078,100.0,137.39,137.38,47.38288301]
[1763335123395,100.0,137.4,137.39,9.78882769]
[1763335123698,100.0,137.43,137.42,22.6512]
[1763335123890,100.0,137.43,137.42,44.93674432]
[1763335124107,100.0,137.43,137.42,55.44360548]
[1763335124274,100.0,137.43,137.42,47.38288301]
[1763335124594,0.71,137.52,137.42,47.38288301]
[1763335124814,100.0,137.43,137.42,46.66288301]
[1763335124970,0.71,137.52,137.42,32.44002769]
[1763335125171,0.71,137.52,137.43,21.88150678]
[1763335125172,100.0,137.44,137.43,21.88150678]
[1763335125371,0.71,137.52,137.43,22.60150678]
[1763335125585,100.0,137.47,137.46,22.6512]
[1763335126273,100.0,137.47,137.46,35.81173125]
[1763335126595,100.71,137.47,137.46,6.04910359]
[1763335126783,100.71,137.47,137.46,7.11142766]
[1763335127093,100.0,137.45,137.43,6.04910359]
[1763335127395,100.0,137.45,137.44,7.11142766]
[1763335127691,100.71,137.45,137.44,7.00142766]
[1763335128704,100.0,137.45,137.44,7.00142766]
[1763335128904,100.0,137.45,137.43,6.04910359]
[1763335129214,100.0,137.4,137.38,13.16053125]
[1763335129374,17.51025535,137.44,137.3,0.72]
[1763335129375,100.0,137.35,137.34,6.04910359]
[1763335129693,100.0,137.33,137.32,30.72951146]
[1763335129994,21.91376668,137.71,137.3,12.81267909]
[1763335129995,100.0,137.31,137.3,8.07831146]
[1763335130169,100.0,137.29,137.28,0.2]
[1763335130571,100.51,137.29,137.28,0.2]
[1763335130772,117.41025535,137.29,137.28,0.1]
[1763335130974,110.29882769,137.29,137.28,0.1]
[1763335131506,100.51,137.29,137.28,0.1]
[1763335131875,100.51,137.29,137.28,7.21142766]
[1763335132089,100.51,137.29,137.28,0.1]
[1763335132401,142.06145535,137.29,137.28,0.1]
[1763335133104,132.95002769,137.29,137.28,0.1]
[1763335133470,100.51,137.29,137.28,0.1]
[1763335133711,100.0,137.29,137.28,0.1]
[1763335133990,110.19882769,137.29,137.28,0.1]
[1763335134598,100.0,137.29,137.28,7.21142766]
[1763335135592,100.0,137.29,137.28,7.93142766]
[1763335136102,100.0,137.29,137.28,13.99136615]
[1763335136870,100.0,137.29,137.28,7.93142766]
[1763335137099,100.0,137.29,137.28,13.99136615]
[1763335137410,100.0,137.29,137.28,7.21142766]
[1763335140399,100.0,137.29,137.28,30.56262766]
[1763335140785,100.0,137.29,137.28,46.41139384]
[1763335141006,100.0,137.32,137.31,22.6512]
[1763335141212,100.0,137.32,137.31,46.66288301]
[1763335141411,100.0,137.36,137.35,22.6512]
[1763335141583,100.0,137.36,137.35,45.54713752]
[1763335141790,100.0,137.4,137.39,32.44002769]
[1763335141994,100.0,137.41,137.4,9.78882769]
[1763335142185,0.1,137.43,137.42,22.6512]
[1763335142186,100.1,137.43,137.42,22.6512]
[1763335142384,100.1,137.43,137.42,36.87405532]
[1763335142587,100.1,137.43,137.42,37.57405532]
[1763335143690,100.0,137.44,137.43,9.78882769]
[1763335143893,100.0,137.47,137.46,22.6512]
[1763335144089,100.0,137.47,137.46,29.76262766]
[1763335144291,100.0,137.45,137.44,5.98956212]
[1763335144509,100.0,137.45,137.44,7.11142766]
[1763335144690,100.0,137.45,137.44,23.58981747]
[1763335145103,100.0,137.45,137.44,13.10098978]
[1763335145312,100.0,137.45,137.44,29.76262766]
[1763335145821,100.0,137.45,137.44,30.46262766]
[1763335146335,100.0,137.48,137.47,22.6512]
[1763335146498,100.0,137.48,137.47,29.76262766]
[1763335146933,100.0,137.48,137.47,7.11142766]
[1763335148521,100.0,137.48,137.43,22.6512]
[1763335148522,100.41,137.48,137.43,22.6512]
[1763335148833,100.0,137.4,137.39,9.78882769]
[1763335149008,0.31,137.51,137.39,9.78882769]
[1763335149197,100.0,137.38,137.37,17.78307059]
[1763335149400,2.0,137.5,137.4,22.6512]
[1763335149601,100.0,137.41,137.39,5.99645115]
[1763335149796,100.0,137.41,137.4,24.01168301]
[1763335150128,100.0,137.41,137.4,29.76262766]
[1763335150827,100.0,137.41,137.35,7.9942429]
[1763335150828,100.0,137.36,137.35,5.99645115]
[1763335151124,100.0,137.36,137.34,7.81142766]
[1763335151303,100.0,137.36,137.35,22.6512]
[1763335151504,100.0,137.36,137.34,7.81142766]
[1763335151698,100.0,137.36,137.35,7.11142766]
[1763335152726,100.31,137.36,137.35,7.11142766]
[1763335152927,100.0,137.31,137.3,23.3512]
[1763335153102,100.0,137.31,137.3,46.66288301]
[1763335153299,10.09882769,137.47,137.35,9.78882769]
[1763335153516,100.0,137.39,137.38,22.6512]
[1763335154020,100.0,137.4,137.39,32.44002769]
[1763335154220,100.0,137.4,137.39,33.14002769]
[1763335154542,100.0,137.4,137.39,28.64926248]
[1763335154722,100.0,137.4,137.39,29.76262766]
[1763335155030,100.0,137.4,137.39,30.46262766]
[1763335155326,100.0,137.4,137.39,35.76069014]
[1763335155532,100.0,137.4,137.39,36.46069014]
[1763335155907,100.0,137.43,137.42,22.6512]
[1763335156110,100.0,137.43,137.42,37.57405532]
[1763335157344,100.0,137.43,137.42,7.11142766]
[1763335157647,100.0,137.38,137.37,5.99960469]
[1763335157805,0.31,137.43,137.34,5.99960469]
[1763335157806,100.0,137.36,137.34,5.99960469]
[1763335158002,100.0,137.36,137.32,8.00175904]
[1763335158003,100.0,137.36,137.35,7.11142766]
[1763335158437,100.0,137.33,137.32,5.99960469]
[1763335158610,100.0,137.33,137.32,7.11142766]
[1763335158819,100.0,137.33,137.32,13.11103235]
[1763335159140,100.0,137.33,137.32,36.44223235]
[1763335159305,100.0,137.33,137.32,30.44262766]
[1763335159618,100.0,137.33,137.32,35.77671816]
[1763335160105,100.0,137.33,137.32,30.44262766]
[1763335160508,100.0,137.36,137.35,22.6512]
[1763335160812,100.0,137.36,137.35,33.31958245]
[1763335161838,100.0,137.36,137.35,28.6652905]
[1763335162131,100.0,137.36,137.35,26.62549195]
[1763335162936,100.0,137.36,137.34,9.98838245]
[1763335163114,100.0,137.36,137.35,3.97429195]
[1763335163733,100.0,137.31,137.3,10.46882769]
[1763335163915,100.0,137.31,137.3,37.09431964]
[1763335164120,100.0,137.31,137.3,43.10779947]
[1763335164317,100.0,137.31,137.29,6.01347983]
[1763335164525,100.0,137.29,137.28,0.1]
[1763335164724,100.0,137.29,137.28,22.7512]
[1763335164922,100.0,137.29,137.28,0.78]
[1763335165329,100.0,137.29,137.28,10.56882769]
[1763335165531,100.0,137.29,137.28,14.54311964]
[1763335165845,100.0,137.32,137.31,22.6512]
[1763335166042,100.0,137.32,137.31,3.97429195]
[1763335167126,100.0,137.32,137.31,27.30549195]
[1763335167432,100.0,137.32,137.31,41.06861159]
[1763335168522,100.0,137.32,137.31,26.62549195]
[1763335168726,100.0,137.32,137.31,32.63717703]
[1763335169837,100.0,137.32,137.31,26.62549195]
[1763335170025,100.0,137.32,137.31,3.97429195]
[1763335171636,100.0,137.29,137.28,0.1]
[1763335171976,100.0,137.29,137.28,27.39549195]
[1763335172421,100.0,137.29,137.28,26.72549195]
[1763335172620,100.0,137.29,137.28,27.39549195]
[1763335172924,100.0,137.29,137.28,4.07429195]
[1763335174337,100.0,137.26,137.25,0.2]
[1763335174649,100.0,137.26,137.25,4.17429195]
[1763335175056,100.0,137.26,137.25,17.93741159]
[1763335175057,50.0,137.26,137.25,17.93741159]
[1763335175265,50.0,137.33,137.29,9.78882769]
[1763335175436,100.0,137.32,137.31,8.01608763]
[1763335175635,100.0,137.32,137.3,18.3874239]
[1763335175956,100.0,137.32,137.31,16.47389631]
[1763335176161,100.0,137.32,137.31,10.45882769]
[1763335176364,100.0,137.35,137.34,22.6512]
[1763335176561,100.0,137.35,137.34,30.5997839]
[1763335177427,100.0,137.35,137.34,22.6512]
[1763335177626,100.0,137.35,137.34,30.5997839]
[1763335178026,100.0,137.35,137.34,31.2697839]
[1763335178228,100.0,137.35,137.34,30.5997839]
[1763335179933,100.0,137.35,137.31,6.68822942]
[1763335179934,100.0,137.32,137.31,6.01822942]
[1763335180158,100.0,137.32,137.31,3.97429195]
[1763335180352,9.78882769,137.41,137.31,18.40741159]
[1763335180550,100.0,137.32,137.31,15.80705711]
[1763335180736,24.6512,137.43,137.31,9.78882769]
[1763335180933,100.0,137.32,137.31,9.78882769]
[1763335181128,50.0,137.32,137.31,9.78882769]
[1763335181330,100.0,137.32,137.31,9.78882769]
[1763335181536,9.78882769,137.42,137.31,24.44043005]
[1763335181834,100.0,137.35,137.34,26.62549195]
[1763335182827,100.0,137.35,137.34,31.2697839]
[1763335183450,100.0,137.35,137.34,37.30280236]
[1763335183652,100.0,137.35,137.34,41.05861159]